bitfinex-derivatives/quotes_ETHF0:USTF0_20260120
["timestamp","ask_amount","ask_price","bid_price","bid_amount"]
[1768871781172,0.34637443,3184.6,3182.8,1.34514492]
[1768871781380,0.86296947,3184.5,3182.8,1.34514492]
[1768871781573,0.34637443,3184.6,3182.8,1.34514492]
[1768871781766,0.86294098,3184.5,3182.8,1.34514492]
[1768871781966,0.34637443,3184.6,3182.8,1.34514492]
[1768871782171,0.86297194,3184.5,3182.8,1.34514492]
[1768871782375,0.34637443,3184.6,3182.8,1.34514492]
[1768871782576,0.86284862,3184.5,3182.8,1.34514492]
[1768871782778,0.34637443,3184.6,3182.8,1.34514492]
[1768871782972,0.86284624,3184.5,3182.8,1.34514492]
[1768871783173,0.34637443,3184.6,3182.8,1.34514492]
[1768871783375,0.86276543,3184.5,3182.8,1.34514492]
[1768871783566,0.1571,3184.7,3182.9,0.37285456]
[1768871783769,0.86276423,3184.6,3182.9,0.37285456]
[1768871783976,0.8627629,3184.5,3182.9,0.37285456]
[1768871784178,0.1571,3184.7,3182.9,0.37285456]
[1768871784379,0.86281454,3184.6,3182.9,0.37285456]
[1768871784580,0.86281454,3184.5,3182.9,0.37285456]
[1768871784770,0.1571,3184.7,3182.9,0.37285456]
[1768871784970,0.86282342,3184.6,3182.9,0.37285456]
[1768871785276,0.86282342,3184.5,3182.9,0.37285456]
[1768871785479,0.86282342,3184.4,3182.9,0.37285456]
[1768871785778,0.1571,3184.7,3182.9,0.37285456]
[1768871786079,0.8628616,3184.6,3182.9,0.37285456]
[1768871786377,0.8628616,3184.5,3182.9,0.37285456]
[1768871786575,0.8628616,3184.4,3182.9,0.37285456]
[1768871786769,0.1571,3184.7,3182.9,0.37285456]
[1768871786970,0.86304696,3184.6,3182.9,0.37285456]
[1768871787269,0.86304696,3184.5,3182.9,0.37285456]
[1768871787464,0.86304696,3184.4,3182.9,0.37285456]
[1768871787669,0.1571,3184.7,3182.9,0.37285456]
[1768871787875,0.86332331,3184.6,3182.9,0.37285456]
[1768871788074,0.86332331,3184.5,3182.9,0.37285456]
[1768871788271,0.86332331,3184.4,3182.9,0.37285456]
[1768871788476,0.86332331,3184.3,3182.9,0.37285456]
[1768871788678,1.28315454,3184.7,3182.9,0.37285456]
[1768871788883,0.86367931,3184.6,3182.9,0.37285456]
[1768871789074,0.86367931,3184.5,3182.9,0.37285456]
[1768871789278,0.86367931,3184.4,3182.9,0.37285456]
[1768871789472,0.86367931,3184.3,3182.9,0.37285456]
[1768871789671,1.28315454,3184.7,3182.9,0.37285456]
[1768871789876,0.86411032,3184.6,3182.9,0.37285456]
[1768871790079,0.86411032,3184.5,3182.9,0.37285456]
[1768871790268,0.86411032,3184.4,3182.9,0.37285456]
[1768871790473,1.28315454,3184.7,3182.9,0.37285456]
[1768871790474,0.86411032,3184.3,3182.9,0.37285456]
[1768871790788,1.12605454,3184.9,3182.9,0.37285456]
[1768871790980,0.86414458,3184.8,3182.9,0.37285456]
[1768871791181,0.86414458,3184.7,3182.9,0.37285456]
[1768871791482,0.86414458,3184.6,3182.9,0.37285456]
[1768871791782,1.12605454,3184.9,3182.9,0.37285456]
[1768871791987,0.8646792,3184.8,3182.9,0.37285456]
[1768871792297,0.8646792,3184.7,3182.9,0.37285456]
[1768871792579,0.8646792,3184.6,3182.9,0.37285456]
[1768871792780,0.8646792,3184.5,3182.9,0.37285456]
[1768871792981,1.12605454,3184.9,3182.9,0.37285456]
[1768871793283,1.99117796,3184.8,3182.9,0.37285456]
[1768871793577,0.86512342,3184.7,3182.9,0.37285456]
[1768871793771,0.86512342,3184.6,3182.9,0.37285456]
[1768871793973,0.86512342,3184.5,3182.9,0.37285456]
[1768871794165,1.12605454,3184.9,3182.9,0.37285456]
[1768871794368,1.99179871,3184.8,3182.9,0.37285456]
[1768871794673,0.86574417,3184.7,3182.9,0.37285456]
[1768871794983,0.86574417,3184.6,3182.9,0.37285456]
[1768871795167,0.86574417,3184.5,3182.9,0.37285456]
[1768871795367,0.86574417,3184.4,3182.9,0.37285456]
[1768871795572,1.12605454,3184.8,3182.9,0.37285456]
[1768871795772,0.86554994,3184.7,3182.9,0.37285456]
[1768871795973,0.86554994,3184.6,3182.9,0.37285456]
[1768871796277,0.86554994,3184.5,3183.0,0.37285456]
[1768871796472,1.12605454,3184.9,3183.0,0.37285456]
[1768871796672,0.86557752,3184.8,3183.0,0.37285456]
[1768871796873,0.86557752,3184.7,3183.0,0.37285456]
[1768871797180,0.86557752,3184.6,3183.0,0.37285456]
[1768871797371,0.86557752,3184.5,3183.0,0.37285456]
[1768871797683,1.12605454,3184.9,3183.0,0.37285456]
[1768871797981,0.86571085,3184.8,3183.0,0.37285456]
[1768871798183,0.86571085,3184.7,3183.0,0.37285456]
[1768871798381,0.86571085,3184.6,3183.0,0.37285456]
[1768871798582,0.86571085,3184.5,3183.0,0.37285456]
[1768871798886,1.12605454,3184.9,3183.0,0.37285456]
[1768871799082,0.86580726,3184.8,3183.0,0.37285456]
[1768871799380,0.86580726,3184.7,3183.0,0.37285456]
[1768871799574,0.86580726,3184.6,3183.0,0.37285456]
[1768871799775,0.86580726,3184.5,3183.0,0.37285456]
[1768871799975,1.12605454,3184.9,3183.0,0.37285456]
[1768871800172,0.86598549,3184.8,3183.0,0.37285456]
[1768871800370,1.12605454,3184.8,3183.1,0.37285456]
[1768871801585,1.12605454,3184.6,3183.2,3.163]
[1768871801980,1.12605454,3184.6,3183.1,0.37285456]
[1768871802182,1.12605454,3184.6,3182.8,0.00314492]
[1768871802386,2.34574969,3184.5,3182.8,0.00314492]
[1768871802588,0.86598549,3184.4,3182.8,0.00314492]
[1768871803380,0.86598549,3184.4,3182.8,0.37305372]
[1768871804793,0.86598549,3184.3,3182.8,0.37305372]
[1768871804999,0.86598549,3184.2,3182.9,3.165]
[1768871805177,1.28315454,3184.6,3182.9,3.165]
[1768871805383,0.86693361,3184.5,3182.9,3.165]
[1768871805583,0.86693361,3184.4,3182.9,3.165]
[1768871805784,0.86693361,3184.3,3182.9,3.165]
[1768871806082,0.86693361,3184.2,3182.9,3.166]
[1768871806279,0.86693361,3184.1,3182.9,3.166]
[1768871806487,0.86693361,3184.0,3182.9,3.166]
[1768871806794,1.12605454,3184.4,3182.9,3.166]
[1768871807290,1.12605454,3184.4,3182.9,3.5359088]
[1768871807483,0.86723394,3184.3,3183.0,0.3699088]
[1768871807682,0.86723394,3184.2,3183.0,0.3699088]
[1768871807887,0.86723394,3184.1,3183.0,0.3699088]
[1768871808091,1.12605454,3184.5,3183.0,0.3699088]
[1768871808287,1.99371467,3184.5,3183.0,0.3699088]
[1768871808484,0.86766013,3184.4,3183.0,0.3699088]
[1768871808687,1.12605454,3184.5,3183.0,0.3699088]
[1768871808688,0.86766013,3184.3,3183.0,0.3699088]
[1768871808985,1.12605454,3184.5,3183.0,0.3699088]
[1768871808986,0.86766013,3184.2,3183.0,0.3699088]
[1768871809192,1.12605454,3184.6,3183.0,0.3699088]
[1768871809585,1.68908182,3184.8,3183.0,0.3699088]
[1768871809586,0.86787001,3184.5,3183.0,0.3699088]
[1768871809788,0.86787001,3184.4,3183.0,0.3699088]
[1768871809990,1.12605454,3184.8,3183.0,0.3699088]
[1768871810186,0.86769721,3184.7,3183.3,0.3699088]
[1768871810386,0.86769721,3184.6,3183.3,0.3699088]
[1768871810684,1.12605454,3185.0,3183.3,0.3699088]
[1768871810884,1.99366481,3185.0,3183.3,0.3699088]
[1768871811087,0.86761027,3184.9,3183.3,0.3699088]
[1768871811287,0.86761027,3184.8,3183.3,0.3699088]
[1768871811490,0.86761027,3184.7,3183.3,0.3699088]
[1768871811796,1.12605454,3185.1,3183.3,0.3699088]
[1768871814300,1.99348909,3185.1,3183.3,0.3699088]
[1768871815193,1.99348909,3185.1,3183.3,0.5270788]
[1768871815499,0.86743455,3185.0,3183.5,0.36538415]
[1768871815711,0.00367258,3185.2,3183.5,0.36538415]
[1768871815712,0.86743455,3184.9,3183.5,0.36538415]
[1768871815891,0.00367258,3185.2,3183.5,0.36538415]
[1768871816197,0.86717484,3185.1,3183.5,0.36538415]
[1768871816398,0.86717484,3185.0,3183.5,0.36538415]
[1768871816590,0.00367258,3185.2,3183.5,0.36538415]
[1768871816792,0.86698638,3185.1,3183.6,0.36538415]
[1768871816991,0.86698638,3185.0,3183.6,0.36538415]
[1768871817189,0.00367258,3185.2,3183.6,0.36538415]
[1768871817395,0.86684684,3185.1,3183.6,0.36538415]
[1768871817597,0.00367258,3185.2,3183.6,0.36538415]
[1768871817795,0.8668477,3185.1,3183.6,0.36538415]
[1768871817995,0.00367258,3185.2,3183.6,0.36538415]
[1768871818197,0.86684643,3185.1,3183.6,0.36538415]
[1768871818391,0.00367258,3185.2,3183.6,0.36538415]
[1768871818599,0.86674802,3185.1,3183.6,0.36538415]
[1768871818798,0.00367258,3185.2,3183.6,0.36538415]
[1768871818990,0.86674722,3185.1,3183.6,0.36538415]
[1768871819187,0.00367258,3185.2,3183.6,0.36538415]
[1768871819391,0.86666038,3185.1,3183.6,0.36538415]
[1768871819592,0.00367258,3185.2,3183.6,0.36538415]
[1768871819789,0.86666037,3185.1,3183.6,0.36538415]
[1768871819999,0.00367258,3185.2,3183.6,0.36538415]
[1768871820189,0.86642855,3185.1,3183.6,0.36538415]
[1768871820394,0.00367258,3185.2,3183.6,0.36538415]
[1768871820594,0.00367258,3185.2,3183.5,43.943]
[1768871820595,0.86646447,3185.1,3183.9,0.36538415]
[1768871820789,0.00367258,3185.2,3184.0,3.17]
[1768871820993,0.00367258,3185.2,3184.1,0.36538415]
[1768871822701,1.12605454,3186.4,3184.6,0.36538415]
[1768871822907,1.12605454,3186.8,3184.8,0.36538415]
[1768871823202,1.12605454,3186.8,3184.1,10.2922124]
[1768871823203,0.86570289,3186.7,3185.1,0.36538415]
[1768871823406,1.12605454,3187.2,3185.3,0.36538415]
[1768871823599,1.12605454,3187.2,3185.3,0.36814879]
[1768871823600,0.86476367,3187.1,3185.3,0.36814879]
[1768871823794,0.86476367,3187.0,3185.3,0.36814879]
[1768871823995,0.86476367,3186.9,3185.3,0.36814879]
[1768871824304,0.00268432,3187.2,3185.3,0.36814879]
[1768871824500,0.86397559,3187.1,3185.3,0.36814879]
[1768871824705,0.86397559,3187.0,3185.3,0.36814879]
[1768871824902,0.86397559,3186.9,3185.3,0.36814879]
[1768871825102,0.00268432,3187.2,3185.3,0.36814879]
[1768871825296,0.86346121,3187.1,3185.3,0.36814879]
[1768871825496,0.86346121,3187.0,3185.3,0.36814879]
[1768871825800,0.00268432,3187.2,3185.3,0.36814879]
[1768871826001,0.8635117,3187.1,3185.3,0.36814879]
[1768871826305,0.00268432,3187.2,3185.3,0.36814879]
[1768871827897,0.36706957,3187.2,3185.4,3.177]
[1768871828498,0.36706957,3187.2,3185.4,3.54238415]
[1768871829299,0.36706957,3187.2,3185.4,0.36538415]
[1768871829506,0.36706957,3187.2,3185.5,3.176]
[1768871832212,0.36706957,3187.2,3185.6,0.36538415]
[1768871837920,0.36438525,3187.0,3185.3,0.00276464]
[1768871838215,1.21690891,3186.9,3185.3,0.00276464]
[1768871838416,0.36438525,3186.9,3185.3,0.36814879]
[1768871838617,0.15699,3187.0,3185.3,0.36814879]
[1768871838812,0.8527984,3186.9,3185.3,0.36814879]
[1768871839017,0.15699,3187.0,3185.3,0.36814879]
[1768871839214,0.85270295,3186.9,3185.3,0.36814879]
[1768871839414,0.15699,3187.0,3185.3,0.36814879]
[1768871839611,0.85306752,3186.9,3185.3,0.36814879]
[1768871839810,0.00268432,3187.2,3185.3,0.36814879]
[1768871840116,0.00268432,3187.2,3185.6,0.36538415]
[1768871844419,0.00268432,3187.2,3185.8,0.35177584]
[1768871848027,0.00268432,3187.2,3185.8,0.50881584]
[1768871848328,0.00268432,3187.2,3185.9,0.35177584]
[1768871848524,0.00268432,3187.2,3186.0,0.35177584]
[1768871848716,1.12605454,3187.9,3186.1,0.35177584]
[1768871848929,0.85613701,3187.8,3186.1,0.35177584]
[1768871849114,0.85613701,3187.7,3186.2,0.35177584]
[1768871849315,0.85613701,3187.6,3186.2,3.51177584]
[1768871849519,1.68908182,3188.1,3186.2,3.51177584]
[1768871849520,0.85676419,3187.5,3186.2,3.51177584]
[1768871849718,0.00382819,3187.5,3186.3,0.35177584]
[1768871852331,0.85765225,3187.4,3186.3,0.35177584]
[1768871852627,0.00382819,3187.5,3186.3,0.35177584]
[1768871855634,0.85751011,3187.4,3186.2,3.167]
[1768871855825,0.00382819,3187.5,3186.2,3.167]
[1768871856136,0.85754606,3187.4,3186.2,3.167]
[1768871856335,0.00382819,3187.5,3186.2,3.167]
[1768871856534,0.85754279,3187.4,3186.2,3.167]
[1768871856730,0.00382819,3187.5,3185.9,0.35177584]
[1768871856932,0.85754316,3187.4,3185.9,0.35177584]
[1768871857235,0.85754316,3187.3,3186.0,3.168]
[1768871857437,0.00382819,3187.5,3186.0,3.168]
[1768871857438,0.85754316,3187.2,3186.0,3.168]
[1768871857634,0.00382819,3187.5,3186.0,3.168]
[1768871857836,0.85753006,3187.4,3185.9,0.35177584]
[1768871858138,0.85753006,3187.3,3185.9,0.35177584]
[1768871858332,0.85753006,3187.2,3185.9,0.35177584]
[1768871858635,0.85753006,3187.1,3185.9,0.35177584]
[1768871858838,1.28684273,3187.5,3185.9,0.35177584]
[1768871859135,0.85759916,3187.4,3185.9,0.35177584]
[1768871859334,0.85759916,3187.3,3185.9,0.35177584]
[1768871859534,0.85759916,3187.2,3185.9,0.35177584]
[1768871859726,0.85759916,3187.1,3185.9,0.35177584]
[1768871859926,1.28684273,3187.5,3185.9,0.35177584]
[1768871860125,0.85764972,3187.4,3185.9,0.35177584]
[1768871860336,0.85764972,3187.3,3185.9,0.35177584]
[1768871860539,0.85764972,3187.2,3185.9,0.35177584]
[1768871860737,0.85764972,3187.1,3185.9,0.35177584]
[1768871860937,1.28684273,3187.5,3185.9,0.35177584]
[1768871861139,0.85769141,3187.4,3185.9,0.35177584]
[1768871861339,0.85769141,3187.3,3185.9,0.35177584]
[1768871861528,0.85769141,3187.2,3185.9,0.35177584]
[1768871861834,0.85769141,3187.1,3185.9,0.35177584]
[1768871862038,1.28684273,3187.5,3185.9,0.35177584]
[1768871862239,0.85773432,3187.4,3185.9,0.35177584]
[1768871862436,0.85773432,3187.3,3185.9,0.35177584]
[1768871862633,0.85773432,3187.2,3185.9,0.35177584]
[1768871862846,0.85773432,3187.1,3186.0,0.96389905]
[1768871863136,1.28684273,3187.5,3186.0,0.96389905]
[1768871863341,0.85781825,3187.4,3186.0,0.96389905]
[1768871863541,0.85781825,3187.3,3186.0,0.96389905]
[1768871863742,0.85781825,3187.2,3186.0,0.96389905]
[1768871866853,0.85781825,3187.1,3185.9,0.35177584]
[1768871867054,0.85781825,3187.0,3185.9,3.52377584]
[1768871867247,2.08995359,3187.3,3185.9,3.52377584]
[1768871867248,0.85781825,3186.9,3185.9,3.52377584]
[1768871867448,2.08995359,3187.3,3185.9,0.35177584]
[1768871867648,0.85769294,3187.2,3185.8,3.173]
[1768871867848,0.85769294,3187.1,3185.8,3.173]
[1768871868052,0.85769294,3187.0,3185.8,3.173]
[1768871868251,0.85769294,3186.9,3185.8,3.173]
[1768871868452,1.12605454,3187.2,3185.8,3.173]
[1768871868655,1.98398575,3187.2,3185.8,3.173]
[1768871869550,1.98398575,3187.2,3185.8,3.176]
[1768871870856,1.98398575,3187.2,3185.8,3.52413238]
[1768871871157,0.85793121,3187.2,3185.8,3.52413238]
[1768871871356,0.85793121,3187.1,3185.8,3.52413238]
[1768871871655,0.85793121,3187.0,3185.8,3.52413238]
[1768871871956,0.85793121,3186.9,3185.8,3.52413238]
[1768871872155,2.08995359,3187.3,3185.8,3.52413238]
[1768871872358,0.85820601,3187.2,3185.8,3.52413238]
[1768871872658,0.85820601,3187.1,3185.8,0.34813238]
[1768871872859,0.85820601,3187.0,3185.9,3.18]
[1768871873056,0.85820601,3186.9,3185.9,3.181]
[1768871873358,0.85820601,3186.8,3185.9,3.181]
[1768871873656,1.12605454,3187.2,3185.9,3.181]
[1768871873856,1.98448312,3187.2,3185.9,3.181]
[1768871875154,0.85842858,3187.2,3185.9,3.181]
[1768871875355,2.24692359,3187.3,3185.9,3.181]
[1768871875356,0.85842858,3187.1,3185.9,3.181]
[1768871875557,0.85842858,3187.0,3185.9,3.181]
[1768871875758,2.24692359,3187.3,3185.9,3.181]
[1768871875759,0.85842858,3186.9,3185.9,3.181]
[1768871876062,2.24692359,3187.3,3185.9,3.181]
[1768871876262,0.85833729,3187.2,3185.9,3.181]
[1768871876455,0.85833729,3187.1,3185.9,3.181]
[1768871876654,0.85833729,3187.0,3185.9,3.181]
[1768871876856,0.85833729,3186.9,3185.9,3.181]
[1768871877057,2.24692359,3187.3,3185.9,3.181]
[1768871877258,0.85828836,3187.2,3185.9,3.181]
[1768871877547,0.85828836,3187.1,3185.9,3.181]
[1768871877757,0.85828836,3187.0,3185.9,3.5309167]
[1768871877957,0.85828836,3186.9,3185.9,3.5309167]
[1768871878158,2.24692359,3187.3,3186.0,0.3499167]
[1768871878352,0.85820739,3187.2,3186.0,0.3499167]
[1768871878662,0.85820739,3187.1,3186.0,0.3499167]
[1768871878856,0.85820739,3187.0,3186.0,0.3499167]
[1768871879056,0.85820739,3186.9,3186.0,0.3499167]
[1768871879256,2.24692359,3187.3,3186.0,0.3499167]
[1768871879558,0.85827464,3187.2,3186.0,0.3499167]
[1768871879753,0.85827464,3187.1,3186.0,0.3499167]
[1768871880057,0.85827464,3187.0,3186.0,0.3499167]
[1768871880362,0.85827464,3186.9,3186.0,0.3499167]
[1768871880565,2.24692359,3187.3,3186.0,0.3499167]
[1768871880765,0.96389905,3187.0,3185.5,0.3499167]
[1768871880970,0.85834852,3186.9,3185.5,0.3499167]
[1768871881267,0.85834852,3186.9,3185.3,4.14266369]
[1768871881268,0.85834852,3186.9,3185.7,0.3499167]
[1768871881455,1.12605454,3187.1,3185.7,0.3499167]
[1768871881456,0.85834852,3186.8,3185.7,0.3499167]
[1768871881651,1.12605454,3187.2,3186.0,0.3499167]
[1768871881956,0.00382819,3187.5,3186.6,0.3499167]
[1768871882158,0.00382819,3187.5,3186.8,1.31381575]
[1768871882362,1.12605454,3188.0,3186.9,0.3499167]
[1768871882564,1.98409452,3188.0,3186.9,0.3499167]
[1768871882766,0.85803998,3187.9,3186.9,0.3499167]
[1768871882959,0.85803998,3187.8,3186.9,0.3499167]
[1768871883269,0.96389905,3188.3,3187.1,0.3499167]
[1768871883270,1.12605454,3188.3,3187.1,0.3499167]
[1768871883461,1.98645125,3188.3,3187.1,0.3499167]
[1768871883667,0.85780774,3188.2,3187.1,0.3499167]
[1768871884370,0.85780774,3188.1,3187.1,0.3499167]
[1768871884568,0.00258897,3188.3,3186.6,3.175]
[1768871884569,1e-08,3188.3,3187.7,0.3499167]
[1768871884762,1.12605454,3188.9,3187.8,0.96389905]
[1768871885263,0.15689,3189.0,3187.8,0.96389905]
[1768871885264,1.12605454,3189.0,3187.8,0.96389905]
[1768871885768,1.12873392,3189.0,3187.8,1.31761331]
[1768871886065,0.00267938,3189.0,3187.8,1.31761331]
[1768871886259,0.00267938,3189.0,3187.9,0.3499167]
[1768871891968,0.00267938,3189.0,3188.2,0.3499167]
[1768871894072,0.96389905,3189.5,3188.2,0.3499167]
[1768871895162,0.00368761,3189.5,3188.3,0.3499167]
[1768871896571,0.84917697,3189.4,3188.3,0.3499167]
[1768871896871,0.00368761,3189.5,3188.3,0.3499167]
[1768871897073,0.84917697,3189.4,3188.3,0.3499167]
[1768871897274,0.00368761,3189.5,3188.3,0.3499167]
[1768871897465,0.84905702,3189.4,3188.3,0.3499167]
[1768871897669,0.96389905,3189.3,3188.3,0.3499167]
[1768871898868,0.00368761,3189.5,3188.3,0.3499167]
[1768871899076,0.84898958,3189.4,3188.3,0.3499167]
[1768871899276,0.00368761,3189.5,3188.3,0.3499167]
[1768871899479,0.8489633,3189.4,3188.3,0.3499167]
[1768871899681,0.00368761,3189.5,3188.3,0.3499167]
[1768871899981,0.84960283,3189.4,3188.3,0.3499167]
[1768871900279,0.00368761,3189.5,3188.3,0.3499167]
[1768871900476,0.84962124,3189.4,3188.3,0.3499167]
[1768871900679,0.00368761,3189.5,3188.3,0.3499167]
[1768871901075,0.00368761,3189.5,3188.8,0.3499167]
[1768871901484,6.321,3190.5,3189.1,0.3499167]
[1768871901786,0.84937888,3190.4,3189.1,0.3499167]
[1768871902086,0.84937888,3190.3,3189.1,0.3499167]
[1768871902289,0.96389905,3190.4,3189.1,0.3499167]
[1768871902579,0.84917033,3190.3,3189.1,0.3499167]
[1768871902769,0.96612528,3190.4,3189.3,0.96389905]
[1768871902770,0.00222623,3190.4,3189.3,0.96389905]
[1768871903081,0.84913704,3190.3,3189.4,0.33770147]
[1768871903277,0.00222623,3190.4,3189.7,0.96389905]
[1768871903483,0.00222623,3190.4,3189.4,1.30160052]
[1768871903670,0.00222623,3190.4,3189.5,0.33770147]
[1768871905981,0.00222623,3190.4,3189.1,0.33770147]
[1768871905982,0.96389905,3190.3,3189.1,0.33770147]
[1768871906171,0.00222623,3190.4,3189.1,0.33770147]
[1768871909081,0.00222623,3190.4,3189.3,0.96389905]
[1768871909880,0.00222623,3190.4,3189.3,0.33770147]
[1768871910889,0.00222623,3190.4,3189.4,1.04938448]
[1768871911390,0.00222623,3190.4,3189.4,1.38708595]
[1768871912196,0.85065932,3190.3,3189.4,1.38708595]
[1768871912492,0.00222623,3190.4,3189.4,1.38708595]
[1768871912690,0.85065932,3190.3,3189.4,1.38708595]
[1768871912881,0.85065968,3190.2,3189.0,1.04938448]
[1768871913186,0.85069448,3190.1,3189.7,0.33770147]
[1768871913384,0.00222623,3190.4,3189.7,0.33770147]
[1768871913582,0.85093923,3190.3,3189.7,0.33770147]
[1768871913784,0.85093923,3190.2,3189.7,0.33770147]
[1768871913982,0.00222623,3190.4,3189.7,0.33770147]
[1768871914288,0.85093817,3190.3,3189.7,0.33770147]
[1768871914490,0.85093817,3190.2,3189.7,0.33770147]
[1768871914689,0.85093817,3190.1,3189.7,0.33770147]
[1768871914992,0.00222623,3190.4,3189.7,0.33770147]
[1768871915179,0.85122963,3190.3,3189.7,0.33770147]
[1768871915382,0.85122963,3190.2,3189.7,0.33770147]
[1768871915587,0.85122963,3190.1,3189.7,0.33770147]
[1768871915882,0.00222623,3190.4,3189.7,0.33770147]
[1768871916195,0.85127864,3190.3,3189.0,0.33770147]
[1768871916394,0.85127864,3190.2,3189.0,0.33770147]
[1768871916579,0.85127864,3190.1,3189.0,0.33770147]
[1768871916784,0.00222623,3190.4,3189.0,0.33770147]
[1768871917091,0.85134928,3190.3,3189.0,0.33770147]
[1768871917297,0.85134928,3190.2,3189.0,0.33770147]
[1768871917482,0.85134928,3190.1,3189.0,0.33770147]
[1768871917686,0.00222623,3190.4,3189.0,3.48970147]
[1768871917884,0.85213717,3190.3,3189.1,0.33770147]
[1768871918183,0.85213717,3190.2,3189.1,0.33770147]
[1768871918383,0.85213717,3190.1,3189.1,0.33770147]
[1768871918585,0.00222623,3190.4,3189.1,0.33770147]
[1768871918885,0.85229384,3190.3,3189.1,0.33770147]
[1768871919087,0.85229384,3190.2,3189.1,0.33770147]
[1768871919286,0.85229384,3190.1,3189.1,0.33770147]
[1768871919596,0.85240764,3190.0,3188.7,0.33770147]
[1768871919792,0.85240764,3189.9,3188.7,0.33770147]
[1768871920097,1.1195388,3190.3,3188.7,0.33770147]
[1768871920494,1.1195388,3190.3,3188.6,3.31091]
[1768871920495,1.1195388,3190.3,3188.9,0.33770147]
[1768871920687,2.25210909,3190.7,3188.9,0.33770147]
[1768871920688,1.68908182,3190.7,3189.7,1.04925733]
[1768871920889,0.35768907,3191.1,3189.7,1.04925733]
[1768871920890,2.04677089,3191.1,3189.7,1.04925733]
[1768871921083,0.35768907,3191.0,3189.2,1.20612733]
[1768871921284,0.35768907,3191.0,3189.3,0.15687]
[1768871921490,2.2460943,3192.8,3189.4,0.064]
[1768871921794,0.36202008,3192.6,3190.3,2.23647729]
[1768871921999,0.00306955,3192.8,3190.4,2.912]
[1768871922000,0.36202008,3192.3,3190.4,2.912]
[1768871922200,0.36202008,3192.3,3190.5,1.04925733]
[1768871922695,0.36202008,3192.3,3190.9,1.04925733]
[1768871922892,0.36508963,3192.8,3190.8,0.01947283]
[1768871923099,0.36508963,3192.8,3190.8,2.25595012]
[1768871923294,0.36508963,3192.8,3190.8,0.01947283]
[1768871923601,0.00306955,3192.8,3190.9,0.0249629]
[1768871923900,0.00306955,3192.8,3191.1,0.0249629]
[1768871924097,0.00306955,3192.8,3191.2,3.137]
[1768871924297,0.00306955,3192.8,3191.1,0.0249629]
[1768871924298,0.00306955,3192.8,3191.3,3.153]
[1768871924602,0.00306955,3192.8,3191.3,6.29]
[1768871925199,0.00306955,3192.8,3191.1,0.0249629]
[1768871925502,0.36508963,3192.8,3191.2,47.088]
[1768871926700,0.36508963,3192.8,3191.2,43.954]
[1768871926906,0.36508963,3192.8,3191.2,3.154]
[1768871927101,0.36202008,3192.7,3190.2,5.08384756]
[1768871927295,14.90802305,3192.7,3190.4,40.8]
[1768871927498,0.36202008,3192.6,3190.5,3.154]
[1768871927698,0.36202008,3192.5,3190.5,3.154]
[1768871927895,0.36202008,3192.4,3190.5,3.154]
[1768871929205,0.36202008,3192.4,3190.3,0.004074]
[1768871929405,0.36202008,3192.2,3190.4,2.074]
[1768871929804,0.36202008,3192.1,3190.4,2.074]
[1768871930311,0.36202008,3191.6,3190.3,0.004074]
[1768871931702,14.90802305,3191.5,3190.3,0.004074]
[1768871932008,0.36202008,3191.4,3190.3,0.004074]
[1768871932397,0.36202008,3191.1,3190.3,0.004074]
[1768871932802,14.90802305,3191.1,3190.3,0.004074]
[1768871933207,0.38768595,3190.9,3190.3,0.004074]
[1768871933708,14.54600297,3190.8,3189.8,3.161]
[1768871933910,0.38768595,3190.9,3189.8,3.161]
[1768871934206,0.38768595,3190.9,3189.7,3.161]
[1768871934507,0.38768595,3190.9,3189.7,3.16320997]
[1768871934704,0.38768595,3190.9,3189.7,3.16420997]
[1768871938805,0.38768595,3190.8,3189.7,0.00220997]
[1768871939005,0.38768595,3190.6,3189.7,0.00220997]
[1768871939200,0.38768595,3191.0,3189.7,0.00220997]
[1768871940706,0.38768595,3191.6,3189.9,0.15684]
[1768871941905,0.38768595,3191.6,3190.1,0.15683]
[1768871942509,0.38768595,3192.1,3190.1,0.15683]
[1768871942715,14.93368892,3192.1,3190.1,0.15683]
[1768871943219,0.38768595,3192.0,3190.1,0.15683]
[1768871944114,0.38768595,3191.9,3190.1,0.15683]
[1768871945619,0.38768595,3192.4,3190.4,0.15682]
[1768871945804,0.38768595,3192.4,3190.7,0.1568]
[1768871946006,0.38768595,3192.4,3190.8,3.3168]
[1768871946610,0.38768595,3192.4,3191.0,0.15678]
[1768871946807,0.3907555,3192.8,3191.0,0.15678]
[1768871947202,0.3907555,3192.8,3191.1,0.15678]
[1768871947408,0.3907555,3192.8,3190.8,5.53400048]
[1768871947409,0.3907555,3192.8,3191.0,2.23647729]
[1768871947615,0.3907555,3192.8,3191.1,2.23647729]
[1768871947822,0.3907555,3192.8,3191.3,0.15677]
[1768871949318,0.3907555,3192.8,3191.0,2.23647729]
[1768871949319,0.38768595,3192.7,3191.0,2.23647729]
[1768871949518,0.38768595,3192.7,3190.9,6.359]
[1768871949519,0.38768595,3192.4,3191.1,3.162]
[1768871950310,0.38768595,3192.3,3191.1,3.164]
[1768871951817,0.00306955,3192.8,3191.1,3.164]
[1768871952011,0.3907555,3192.8,3191.1,3.32078]
[1768871952207,0.3907555,3192.8,3191.2,0.15678]
[1768871952423,0.3907555,3192.8,3191.1,5.40047729]
[1768871952624,0.38768595,3193.3,3191.6,0.15676]
[1768871952920,0.38768595,3193.3,3191.3,0.16369181]
[1768871952921,0.38768595,3193.3,3191.2,2.23647729]
[1768871953122,0.38768595,3193.3,3191.3,47.103]
[1768871953315,0.38768595,3192.9,3191.4,3.167]
[1768871953718,0.38768595,3192.6,3191.1,0.15678]
[1768871954021,0.38768595,3192.4,3191.2,3.167]
[1768871954425,14.93368892,3192.2,3191.2,3.167]
[1768871954723,14.54600297,3192.1,3190.7,2.23647729]
[1768871954923,0.38768595,3192.1,3191.0,3.167]
[1768871955516,14.54600297,3191.9,3191.0,3.167]
[1768871955909,14.54600297,3191.9,3190.5,2.23647729]
[1768871955910,14.54600297,3191.8,3190.5,2.23647729]
[1768871956120,0.38768595,3191.8,3190.6,3.166]
[1768871956517,14.54600297,3191.7,3190.6,3.166]
[1768871958323,14.93368892,3191.7,3190.6,3.164]
[1768871959323,0.38768595,3192.6,3190.6,3.164]
[1768871959621,0.38768595,3192.4,3190.6,3.164]
[1768871960008,14.93368892,3192.3,3190.6,3.164]
[1768871960213,0.38768595,3192.3,3190.6,3.164]
[1768871960409,14.54600297,3192.2,3190.6,3.164]
[1768871961322,0.38768595,3192.3,3190.6,3.3208]
[1768871961528,0.38768595,3192.3,3190.6,6.4588]
[1768871962821,0.38768595,3192.3,3190.6,3.3208]
[1768871963122,0.43724927,3192.2,3190.7,2.23647729]
[1768871963512,0.43724927,3192.1,3190.7,2.23647729]
[1768871963718,14.98325224,3192.5,3190.8,2.23647729]
[1768871963919,0.43724927,3192.4,3190.7,2.23647729]
[1768871964118,14.98325224,3192.4,3190.8,2.23647729]